[Event "*** SCC Grand Prix: Titled Tuesday Blitz"]
[Site "Chess.com"]
[Date "2020.08.25"]
[Round "9"]
[White "nitpicker"]
[Black "Logman74"]
[Result "0-1"]
[WhiteElo "2223"]
[BlackElo "2381"]
[TimeControl "180+1"]
[EndTime "11:47:04 PDT"]
[Termination "Logman74 won by resignation"]

1. d4 {[%clk 0:03:00.9]} 1... Nf6 {[%clk 0:02:58.2]} 2. c4 {[%clk 0:03:00.3]}
2... e6 {[%clk 0:02:58.1]} 3. g3 {[%clk 0:02:59.4]} 3... Bb4+ {[%clk 0:02:57.1]}
4. Bd2 {[%clk 0:02:58.2]} 4... c5 {[%clk 0:02:56.4]} 5. Bxb4 {[%clk 0:02:53.5]}
5... cxb4 {[%clk 0:02:55.1]} 6. Bg2 {[%clk 0:02:53.2]} 6... d6 {[%clk
0:02:55.2]} 7. e3 {[%clk 0:02:52.9]} 7... O-O {[%clk 0:02:54.9]} 8. Ne2 {[%clk
0:02:53]} 8... a5 {[%clk 0:02:55]} 9. Nd2 {[%clk 0:02:52.6]} 9... d5 {[%clk
0:02:55.2]} 10. a3 {[%clk 0:02:49.9]} 10... bxa3 {[%clk 0:02:53.4]} 11. Rxa3
{[%clk 0:02:48.5]} 11... Nc6 {[%clk 0:02:52.9]} 12. O-O {[%clk 0:02:42.4]} 12...
b6 {[%clk 0:02:52.1]} 13. f4 {[%clk 0:02:38]} 13... Nb4 {[%clk 0:02:50.8]} 14.
b3 {[%clk 0:02:19.7]} 14... Ba6 {[%clk 0:02:49.9]} 15. Ra1 {[%clk 0:02:14.4]}
15... Rc8 {[%clk 0:02:48.2]} 16. Qb1 {[%clk 0:01:46.9]} 16... dxc4 {[%clk
0:02:42.6]} 17. bxc4 {[%clk 0:01:47]} 17... Bxc4 {[%clk 0:02:42.2]} 18. Nxc4
{[%clk 0:01:47]} 18... Rxc4 {[%clk 0:02:42.1]} 19. Rd1 {[%clk 0:01:37.8]} 19...
Nfd5 {[%clk 0:02:25.6]} 20. Qe4 {[%clk 0:01:32.8]} 20... Nc2 {[%clk 0:02:16.1]}
21. Qd3 {[%clk 0:01:21.3]} 21... Ndxe3 {[%clk 0:02:13.2]} 22. Rdc1 {[%clk
0:01:16.5]} 22... b5 {[%clk 0:02:01.9]} 23. Rab1 {[%clk 0:01:11.4]} 23... Nxg2
{[%clk 0:01:58.2]} 24. Rxc2 {[%clk 0:01:08.1]} 24... Rxc2 {[%clk 0:01:56.5]} 25.
Qxc2 {[%clk 0:01:08.1]} 25... Ne3 {[%clk 0:01:56]} 26. Qd3 {[%clk 0:01:08.3]}
26... Nd5 {[%clk 0:01:47.5]} 27. Rxb5 {[%clk 0:01:08.1]} 27... a4 {[%clk
0:01:45.2]} 28. Qa3 {[%clk 0:01:05.2]} 28... Qa8 {[%clk 0:01:41.4]} 29. Rb1
{[%clk 0:01:00.4]} 29... h5 {[%clk 0:01:37.7]} 30. h4 {[%clk 0:00:56.9]} 30...
Rc8 {[%clk 0:01:35.3]} 31. Rb2 {[%clk 0:00:52.1]} 31... Qa5 {[%clk 0:01:30]} 32.
Kf2 {[%clk 0:00:49.3]} 32... g6 {[%clk 0:01:24.2]} 33. Ra2 {[%clk 0:00:49.1]}
33... Rc4 {[%clk 0:01:20.4]} 34. Qd6 {[%clk 0:00:44]} 34... Qb6 {[%clk
0:01:01.6]} 35. Qd7 {[%clk 0:00:30.5]} 35... Qb3 {[%clk 0:00:47.3]} 36. Rd2
{[%clk 0:00:17.8]} 36... Qe3+ {[%clk 0:00:45.8]} 37. Ke1 {[%clk 0:00:17.9]}
37... Rc1+ {[%clk 0:00:39.7]} 38. Rd1 {[%clk 0:00:14.7]} 38... Nc3 {[%clk
0:00:38.7]} 39. Qc8+ {[%clk 0:00:13.3]} 39... Kg7 {[%clk 0:00:36.6]} 40. Qxc3
{[%clk 0:00:11]} 40... Rxc3 {[%clk 0:00:34.9]} 0-1

[Event "*** SCC Grand Prix: Titled Tuesday Blitz"]
[Site "Chess.com"]
[Date "2020.08.25"]
[Round "9"]
[White "mishanick"]
[Black "swimmerchess"]
[Result "0-1"]
[WhiteElo "2955"]
[BlackElo "2847"]
[TimeControl "180+1"]
[EndTime "11:47:05 PDT"]
[Termination "swimmerchess won by checkmate"]

1. d4 {[%clk 0:03:00.9]} 1... Nf6 {[%clk 0:02:59.8]} 2. c4 {[%clk 0:03:01.8]}
2... g6 {[%clk 0:03:00.2]} 3. Nc3 {[%clk 0:03:02.5]} 3... Bg7 {[%clk 0:03:00.7]}
4. e4 {[%clk 0:03:03.2]} 4... d6 {[%clk 0:03:01.4]} 5. Be2 {[%clk 0:03:03.9]}
5... O-O {[%clk 0:03:01.8]} 6. Be3 {[%clk 0:03:04.5]} 6... e5 {[%clk 0:03:02]}
7. d5 {[%clk 0:03:05.1]} 7... Na6 {[%clk 0:03:02.6]} 8. g4 {[%clk 0:03:05.6]}
8... Nc5 {[%clk 0:03:03.1]} 9. f3 {[%clk 0:03:05.8]} 9... h5 {[%clk 0:03:03.8]}
10. h4 {[%clk 0:03:05.6]} 10... a5 {[%clk 0:02:50.7]} 11. g5 {[%clk 0:03:04.6]}
11... Nh7 {[%clk 0:02:50.3]} 12. Qd2 {[%clk 0:03:04.8]} 12... f6 {[%clk
0:02:50.1]} 13. Nh3 {[%clk 0:02:50.8]} 13... Bxh3 {[%clk 0:02:48.5]} 14. Rxh3
{[%clk 0:02:51.7]} 14... fxg5 {[%clk 0:02:49]} 15. hxg5 {[%clk 0:02:52.5]} 15...
Rf4 {[%clk 0:02:49.2]} 16. Bxf4 {[%clk 0:02:31.7]} 16... exf4 {[%clk 0:02:50.1]}
17. Qxf4 {[%clk 0:02:32.3]} 17... Be5 {[%clk 0:02:30.2]} 18. Qe3 {[%clk
0:02:27.5]} 18... Qf8 {[%clk 0:02:29.1]} 19. Nb5 {[%clk 0:02:08.8]} 19... Qf7
{[%clk 0:02:14.5]} 20. Rh1 {[%clk 0:01:55.7]} 20... Bxb2 {[%clk 0:01:57.9]} 21.
Rb1 {[%clk 0:01:55.4]} 21... Be5 {[%clk 0:01:58.5]} 22. Kd1 {[%clk 0:01:31.5]}
22... c6 {[%clk 0:01:33.3]} 23. dxc6 {[%clk 0:01:27.8]} 23... bxc6 {[%clk
0:01:34.2]} 24. Nd4 {[%clk 0:01:28.4]} 24... Rc8 {[%clk 0:01:23.8]} 25. Kc2
{[%clk 0:01:27.2]} 25... Bf4 {[%clk 0:01:14.2]} 26. Qc3 {[%clk 0:01:24.3]} 26...
Nxg5 {[%clk 0:01:11]} 27. Nxc6 {[%clk 0:01:17.6]} 27... Nge6 {[%clk 0:01:03.2]}
28. Rb8 {[%clk 0:00:53.6]} 28... Rxb8 {[%clk 0:00:59]} 29. Nxb8 {[%clk
0:00:54.5]} 29... Be5 {[%clk 0:00:59.9]} 30. Qd2 {[%clk 0:00:17.3]} 30... Nd4+
{[%clk 0:00:59.1]} 31. Kd1 {[%clk 0:00:16.5]} 31... Qb7 {[%clk 0:00:58.2]} 32.
f4 {[%clk 0:00:04.7]} 32... Qb1+ {[%clk 0:00:56.5]} 33. Qc1 {[%clk 0:00:05.1]}
33... Qxe4 {[%clk 0:00:35.6]} 34. Re1 {[%clk 0:00:05.2]} 34... Bxf4 {[%clk
0:00:35.1]} 35. Qb2 {[%clk 0:00:05.5]} 35... Nd3 {[%clk 0:00:30.5]} 36. Qb1
{[%clk 0:00:06]} 36... Nf2# {[%clk 0:00:30.5]} 0-1

[Event "*** SCC Grand Prix: Titled Tuesday Blitz"]
[Site "Chess.com"]
[Date "2020.08.25"]
[Round "9"]
[White "MFBerna"]
[Black "chessdjw"]
[Result "0-1"]
[WhiteElo "2449"]
[BlackElo "2600"]
[TimeControl "180+1"]
[EndTime "11:47:05 PDT"]
[Termination "chessdjw won on time"]

1. e4 {[%clk 0:02:59.8]} 1... Nf6 {[%clk 0:03:00.9]} 2. Nc3 {[%clk 0:02:57.3]}
2... d5 {[%clk 0:02:56.7]} 3. exd5 {[%clk 0:02:51.7]} 3... Nxd5 {[%clk
0:02:57.6]} 4. Qf3 {[%clk 0:02:51.9]} 4... Nxc3 {[%clk 0:02:56.6]} 5. dxc3
{[%clk 0:02:51.6]} 5... e6 {[%clk 0:02:47.6]} 6. Be3 {[%clk 0:02:50.8]} 6... Be7
{[%clk 0:02:42.9]} 7. Rd1 {[%clk 0:02:49.9]} 7... Nd7 {[%clk 0:02:43.1]} 8. Ne2
{[%clk 0:02:47.5]} 8... O-O {[%clk 0:02:42.2]} 9. Nf4 {[%clk 0:02:44.1]} 9...
Bd6 {[%clk 0:02:35]} 10. Be2 {[%clk 0:02:38.1]} 10... Ne5 {[%clk 0:02:31]} 11.
Qg3 {[%clk 0:02:33.7]} 11... Ng6 {[%clk 0:02:30.4]} 12. O-O {[%clk 0:02:21.7]}
12... Qf6 {[%clk 0:02:06.8]} 13. Nh5 {[%clk 0:02:15.2]} 13... Qf5 {[%clk
0:02:06.5]} 14. Qg5 {[%clk 0:01:39.5]} 14... Qxg5 {[%clk 0:02:04.2]} 15. Bxg5
{[%clk 0:01:39]} 15... b6 {[%clk 0:01:57.7]} 16. Bf3 {[%clk 0:01:23.8]} 16...
Rb8 {[%clk 0:01:56.7]} 17. Ng3 {[%clk 0:01:16.7]} 17... f5 {[%clk 0:01:38.6]}
18. Rfe1 {[%clk 0:00:57.4]} 18... Kf7 {[%clk 0:01:38.1]} 19. Bh5 {[%clk
0:00:56]} 19... Bb7 {[%clk 0:01:31.6]} 20. Ne2 {[%clk 0:00:52.7]} 20... e5
{[%clk 0:01:29.7]} 21. Ng3 {[%clk 0:00:49.6]} 21... Ke6 {[%clk 0:01:08.4]} 22.
Be2 {[%clk 0:00:48.7]} 22... h6 {[%clk 0:01:04.2]} 23. Bc4+ {[%clk 0:00:47.3]}
23... Kd7 {[%clk 0:01:04.4]} 24. Bc1 {[%clk 0:00:43.5]} 24... Rbe8 {[%clk
0:01:02]} 25. Nh5 {[%clk 0:00:33.4]} 25... Re7 {[%clk 0:00:57.3]} 26. f3 {[%clk
0:00:24.2]} 26... Nh4 {[%clk 0:00:50.2]} 27. Re2 {[%clk 0:00:18.2]} 27... Nxf3+
{[%clk 0:00:47.5]} 28. gxf3 {[%clk 0:00:17.8]} 28... Bxf3 {[%clk 0:00:48.4]} 29.
Ng3 {[%clk 0:00:14.6]} 29... e4 {[%clk 0:00:48.7]} 30. Bf4 {[%clk 0:00:10.4]}
30... g5 {[%clk 0:00:46.4]} 31. Bxd6 {[%clk 0:00:09.6]} 31... cxd6 {[%clk
0:00:47.3]} 32. Red2 {[%clk 0:00:07.2]} 32... Bxd1 {[%clk 0:00:46.8]} 33. Rxd1
{[%clk 0:00:08.1]} 33... f4 {[%clk 0:00:44.6]} 34. Ne2 {[%clk 0:00:08]} 34... f3
{[%clk 0:00:40.3]} 35. Nd4 {[%clk 0:00:07.9]} 35... e3 {[%clk 0:00:38.7]} 36.
Rf1 {[%clk 0:00:06.4]} 36... e2 {[%clk 0:00:38.2]} 0-1

[Event "*** SCC Grand Prix: Titled Tuesday Blitz"]
[Site "Chess.com"]
[Date "2020.08.25"]
[Round "9"]
[White "AndreyNeves"]
[Black "TomasKapitanchuk"]
[Result "0-1"]
[WhiteElo "2204"]
[BlackElo "2398"]
[TimeControl "180+1"]
[EndTime "11:47:05 PDT"]
[Termination "TomasKapitanchuk won by checkmate"]

1. d4 {[%clk 0:03:00.9]} 1... Nf6 {[%clk 0:02:59.8]} 2. c4 {[%clk 0:03:01]} 2...
c5 {[%clk 0:02:59.9]} 3. d5 {[%clk 0:03:00.6]} 3... e6 {[%clk 0:03:00.4]} 4. Nc3
{[%clk 0:03:00.1]} 4... exd5 {[%clk 0:03:01.3]} 5. cxd5 {[%clk 0:03:00.2]} 5...
d6 {[%clk 0:03:02.2]} 6. Nf3 {[%clk 0:02:59.4]} 6... g6 {[%clk 0:03:02.4]} 7.
Bf4 {[%clk 0:02:59.1]} 7... Bg7 {[%clk 0:03:02.4]} 8. h3 {[%clk 0:02:58.4]} 8...
O-O {[%clk 0:03:02.1]} 9. e3 {[%clk 0:02:58.4]} 9... Nh5 {[%clk 0:03:02.6]} 10.
Bh2 {[%clk 0:02:57.3]} 10... f5 {[%clk 0:03:03.2]} 11. Be2 {[%clk 0:02:56]}
11... f4 {[%clk 0:03:03.3]} 12. e4 {[%clk 0:02:29]} 12... Nd7 {[%clk 0:02:59.9]}
13. O-O {[%clk 0:02:28.3]} 13... a6 {[%clk 0:02:56.5]} 14. a4 {[%clk 0:02:27.5]}
14... Qe8 {[%clk 0:02:57.1]} 15. Nd2 {[%clk 0:02:25.8]} 15... Ne5 {[%clk
0:02:53.3]} 16. Bxh5 {[%clk 0:02:22.5]} 16... gxh5 {[%clk 0:02:54.2]} 17. Nf3
{[%clk 0:02:14.2]} 17... Qg6 {[%clk 0:02:47]} 18. Nxe5 {[%clk 0:02:09]} 18...
Bxe5 {[%clk 0:02:46.9]} 19. Qf3 {[%clk 0:02:06.8]} 19... Bg4 {[%clk 0:02:38.8]}
20. Qd3 {[%clk 0:01:46.3]} 20... f3 {[%clk 0:02:34.1]} 21. Bxe5 {[%clk
0:01:41.7]} 21... Bxh3 {[%clk 0:02:21.9]} 22. Bg3 {[%clk 0:01:29.3]} 22... Bxg2
{[%clk 0:02:18.6]} 23. Qe3 {[%clk 0:01:02.5]} 23... Qg4 {[%clk 0:02:05.8]} 24.
Qh6 {[%clk 0:00:57.5]} 24... Rae8 {[%clk 0:01:57.9]} 25. Ne2 {[%clk 0:00:25.3]}
25... fxe2 {[%clk 0:01:53]} 26. Kxg2 {[%clk 0:00:22.7]} 26... Qxe4+ {[%clk
0:01:51.3]} 27. Kh2 {[%clk 0:00:20]} 27... exf1=Q {[%clk 0:01:50.8]} 28. Rxf1
{[%clk 0:00:19.3]} 28... Qg6 {[%clk 0:01:38.8]} 29. Qxg6+ {[%clk 0:00:16.5]}
29... hxg6 {[%clk 0:01:38.6]} 30. Bxd6 {[%clk 0:00:17.3]} 30... Rf5 {[%clk
0:01:39.2]} 31. Rd1 {[%clk 0:00:13.8]} 31... Rxf2+ {[%clk 0:01:38.1]} 32. Kg3
{[%clk 0:00:13.6]} 32... Rxb2 {[%clk 0:01:36]} 33. Bxc5 {[%clk 0:00:13.3]} 33...
Rc2 {[%clk 0:01:35.6]} 34. Bb4 {[%clk 0:00:09.8]} 34... Re3+ {[%clk 0:01:32.9]}
35. Kf4 {[%clk 0:00:08.4]} 35... Rb3 {[%clk 0:01:20.7]} 36. Be7 {[%clk
0:00:07.4]} 36... Kf7 {[%clk 0:01:18.1]} 37. d6 {[%clk 0:00:06.8]} 37... Rc4+
{[%clk 0:01:16.3]} 38. Kg5 {[%clk 0:00:06.1]} 38... Rc5+ {[%clk 0:00:47.5]} 39.
Kh6 {[%clk 0:00:05.3]} 39... h4 {[%clk 0:00:45.6]} 40. d7 {[%clk 0:00:05.3]}
40... Rh5# {[%clk 0:00:45.6]} 0-1

[Event "*** SCC Grand Prix: Titled Tuesday Blitz"]
[Site "Chess.com"]
[Date "2020.08.25"]
[Round "9"]
[White "GelmanAlexander"]
[Black "ketster"]
[Result "0-1"]
[WhiteElo "2542"]
[BlackElo "2455"]
[TimeControl "180+1"]
[EndTime "11:47:10 PDT"]
[Termination "ketster won on time"]

1. d4 {[%clk 0:03:00.9]} 1... Nf6 {[%clk 0:02:59.6]} 2. Nc3 {[%clk 0:03:01.3]}
2... d5 {[%clk 0:02:59.4]} 3. Bf4 {[%clk 0:03:01.8]} 3... a6 {[%clk 0:02:57.1]}
4. e3 {[%clk 0:03:01.6]} 4... c5 {[%clk 0:02:53.6]} 5. Nf3 {[%clk 0:03:00.7]}
5... Nc6 {[%clk 0:02:53.5]} 6. Ne5 {[%clk 0:03:01]} 6... e6 {[%clk 0:02:51.5]}
7. g4 {[%clk 0:02:49.3]} 7... cxd4 {[%clk 0:02:46.2]} 8. exd4 {[%clk 0:02:48.9]}
8... Qb6 {[%clk 0:02:46.3]} 9. Nxc6 {[%clk 0:02:44.4]} 9... bxc6 {[%clk
0:02:38]} 10. Na4 {[%clk 0:02:42]} 10... Qa5+ {[%clk 0:02:37.8]} 11. c3 {[%clk
0:02:42.3]} 11... e5 {[%clk 0:02:19.6]} 12. dxe5 {[%clk 0:02:07.9]} 12... Nxg4
{[%clk 0:02:17.9]} 13. b4 {[%clk 0:01:58.2]} 13... Bxb4 {[%clk 0:02:02]} 14.
cxb4 {[%clk 0:01:00.5]} 14... Qxb4+ {[%clk 0:02:00.9]} 15. Bd2 {[%clk
0:00:52.1]} 15... Qe4+ {[%clk 0:01:59.8]} 16. Qe2 {[%clk 0:00:52.7]} 16... Qxh1
{[%clk 0:01:55.7]} 17. Nb6 {[%clk 0:00:53.3]} 17... Nxh2 {[%clk 0:01:20.4]} 18.
Nxa8 {[%clk 0:00:53.1]} 18... Bg4 {[%clk 0:01:18.3]} 19. Qxa6 {[%clk 0:00:28.6]}
19... O-O {[%clk 0:01:12.8]} 20. Be3 {[%clk 0:00:17.1]} 20... Nf3+ {[%clk
0:01:07.3]} 21. Kd1 {[%clk 0:00:16.8]} 21... d4 {[%clk 0:00:58.7]} 22. Bf4
{[%clk 0:00:14.5]} 22... Nxe5+ {[%clk 0:00:51.5]} 23. Kc1 {[%clk 0:00:12.6]}
23... Ng6 {[%clk 0:00:41.6]} 24. Bg3 {[%clk 0:00:09.2]} 24... c5 {[%clk
0:00:34.9]} 25. Nc7 {[%clk 0:00:06.7]} 25... h5 {[%clk 0:00:25]} 26. Kd2 {[%clk
0:00:05.5]} 26... h4 {[%clk 0:00:24]} 27. Bd6 {[%clk 0:00:05.8]} 27... Rd8
{[%clk 0:00:20.5]} 28. Re1 {[%clk 0:00:06]} 28... Qf3 {[%clk 0:00:18.2]} 29. Be2
{[%clk 0:00:04.6]} 29... Qc3+ {[%clk 0:00:17.3]} 30. Kd1 {[%clk 0:00:03.7]}
30... Bf5 {[%clk 0:00:17.4]} 0-1

[Event "*** SCC Grand Prix: Titled Tuesday Blitz"]
[Site "Chess.com"]
[Date "2020.08.25"]
[Round "9"]
[White "Izoria123"]
[Black "GukeshDommaraju"]
[Result "1-0"]
[WhiteElo "2852"]
[BlackElo "2713"]
[TimeControl "180+1"]
[EndTime "11:47:11 PDT"]
[Termination "Izoria123 won by resignation"]

1. e4 {[%clk 0:03:00.9]} 1... c5 {[%clk 0:02:59.9]} 2. Nf3 {[%clk 0:03:00.5]}
2... Nc6 {[%clk 0:03:00]} 3. Nc3 {[%clk 0:02:58.5]} 3... e5 {[%clk 0:02:59.4]}
4. Bc4 {[%clk 0:02:57.5]} 4... Be7 {[%clk 0:02:59.5]} 5. g4 {[%clk 0:02:45.6]}
5... d6 {[%clk 0:02:53.6]} 6. Rg1 {[%clk 0:02:36.1]} 6... Be6 {[%clk 0:02:42.4]}
7. d3 {[%clk 0:02:35.4]} 7... Nf6 {[%clk 0:02:39.3]} 8. g5 {[%clk 0:02:24.9]}
8... Nd7 {[%clk 0:02:39.4]} 9. Be3 {[%clk 0:01:48.4]} 9... Nb6 {[%clk 0:02:33]}
10. Nd5 {[%clk 0:01:48.1]} 10... Bxd5 {[%clk 0:02:09.4]} 11. Bxd5 {[%clk
0:01:46.5]} 11... Nxd5 {[%clk 0:02:05.8]} 12. exd5 {[%clk 0:01:47.4]} 12... Nd4
{[%clk 0:02:01.7]} 13. c3 {[%clk 0:01:46.9]} 13... Nxf3+ {[%clk 0:01:54.2]} 14.
Qxf3 {[%clk 0:01:47.8]} 14... Qd7 {[%clk 0:01:54.2]} 15. O-O-O {[%clk
0:01:46.4]} 15... b5 {[%clk 0:01:42.3]} 16. Kb1 {[%clk 0:01:45.9]} 16... a5
{[%clk 0:01:41.2]} 17. Qe4 {[%clk 0:01:44.2]} 17... b4 {[%clk 0:01:35.5]} 18. c4
{[%clk 0:01:43.5]} 18... a4 {[%clk 0:01:32.8]} 19. h4 {[%clk 0:01:40]} 19...
O-O-O {[%clk 0:01:27.7]} 20. f4 {[%clk 0:01:28]} 20... f5 {[%clk 0:01:08.2]} 21.
gxf6 {[%clk 0:01:18.4]} 21... Bxf6 {[%clk 0:01:07.9]} 22. fxe5 {[%clk 0:01:19]}
22... Bxe5 {[%clk 0:01:08]} 23. Bxc5 {[%clk 0:01:19.5]} 23... Rde8 {[%clk
0:01:02.4]} 24. Bxb4 {[%clk 0:00:57]} 24... Bxb2 {[%clk 0:00:33.8]} 25. Qg4
{[%clk 0:00:53.3]} 25... Qxg4 {[%clk 0:00:33.5]} 26. Rxg4 {[%clk 0:00:53.8]}
26... Bf6 {[%clk 0:00:33.2]} 27. Kc2 {[%clk 0:00:44.8]} 27... Kd7 {[%clk
0:00:30]} 28. Re4 {[%clk 0:00:37.2]} 28... Rxe4 {[%clk 0:00:23.2]} 29. dxe4
{[%clk 0:00:38.1]} 29... Bxh4 {[%clk 0:00:23.2]} 30. e5 {[%clk 0:00:38]} 30...
dxe5 {[%clk 0:00:20.9]} 31. c5 {[%clk 0:00:37.8]} 31... Bf6 {[%clk 0:00:14.7]}
32. c6+ {[%clk 0:00:37.5]} 32... Kc7 {[%clk 0:00:15.3]} 33. Rb1 {[%clk
0:00:32.6]} 33... h5 {[%clk 0:00:13]} 34. Ba3 {[%clk 0:00:27.2]} 34... Rd8
{[%clk 0:00:03.1]} 35. Rb7+ {[%clk 0:00:25.7]} 35... Kc8 {[%clk 0:00:03.4]} 36.
d6 {[%clk 0:00:26.6]} 36... Rg8 {[%clk 0:00:01.3]} 1-0

[Event "*** SCC Grand Prix: Titled Tuesday Blitz"]
[Site "Chess.com"]
[Date "2020.08.25"]
[Round "9"]
[White "Savva09022009"]
[Black "aNaartjieZA"]
[Result "0-1"]
[WhiteElo "2327"]
[BlackElo "2470"]
[TimeControl "180+1"]
[EndTime "11:47:11 PDT"]
[Termination "aNaartjieZA won by checkmate"]

1. e4 {[%clk 0:03:00.9]} 1... e6 {[%clk 0:03:00.1]} 2. d4 {[%clk 0:03:00.7]}
2... d5 {[%clk 0:03:00.6]} 3. Nc3 {[%clk 0:03:00.9]} 3... Bb4 {[%clk 0:03:00.7]}
4. e5 {[%clk 0:03:00.9]} 4... c5 {[%clk 0:03:01.2]} 5. a3 {[%clk 0:03:00.2]}
5... Bxc3+ {[%clk 0:03:01.5]} 6. bxc3 {[%clk 0:03:00.7]} 6... Ne7 {[%clk
0:03:02.1]} 7. Ne2 {[%clk 0:02:57.4]} 7... b6 {[%clk 0:02:59.8]} 8. Nf4 {[%clk
0:02:57.1]} 8... Ba6 {[%clk 0:02:57.8]} 9. Bd3 {[%clk 0:02:56.9]} 9... Bxd3
{[%clk 0:02:56.1]} 10. Qxd3 {[%clk 0:02:56.2]} 10... Qc7 {[%clk 0:02:52.2]} 11.
O-O {[%clk 0:02:55.6]} 11... Nd7 {[%clk 0:02:50.9]} 12. Nh5 {[%clk 0:02:54.3]}
12... O-O-O {[%clk 0:02:47.5]} 13. Nxg7 {[%clk 0:02:50.4]} 13... Rdg8 {[%clk
0:02:46.9]} 14. Nh5 {[%clk 0:02:50]} 14... cxd4 {[%clk 0:02:43]} 15. cxd4 {[%clk
0:02:49.4]} 15... Qc4 {[%clk 0:02:43]} 16. Qxc4+ {[%clk 0:02:46.9]} 16... dxc4
{[%clk 0:02:43.1]} 17. Nf4 {[%clk 0:02:46.6]} 17... b5 {[%clk 0:02:30.2]} 18.
Be3 {[%clk 0:02:46.4]} 18... Nb6 {[%clk 0:02:28.9]} 19. a4 {[%clk 0:02:33.2]}
19... Nxa4 {[%clk 0:02:26.7]} 20. d5 {[%clk 0:02:28.3]} 20... Nxd5 {[%clk
0:02:23.8]} 21. Nxd5 {[%clk 0:02:27.4]} 21... exd5 {[%clk 0:02:24]} 22. Bxa7
{[%clk 0:02:28.1]} 22... Kb7 {[%clk 0:02:22.2]} 23. Bd4 {[%clk 0:02:28.3]} 23...
Rg4 {[%clk 0:02:22.1]} 24. c3 {[%clk 0:02:27.1]} 24... Rhg8 {[%clk 0:02:19.3]}
25. g3 {[%clk 0:02:26.9]} 25... h5 {[%clk 0:02:16.3]} 26. f3 {[%clk 0:02:24.5]}
26... R4g6 {[%clk 0:02:16.1]} 27. Kf2 {[%clk 0:02:24.1]} 27... h4 {[%clk
0:02:14.2]} 28. g4 {[%clk 0:02:23.9]} 28... Ra6 {[%clk 0:02:08.9]} 29. h3 {[%clk
0:02:21.1]} 29... Kc6 {[%clk 0:02:02.8]} 30. f4 {[%clk 0:02:21]} 30... b4 {[%clk
0:02:02.4]} 31. cxb4 {[%clk 0:02:18.6]} 31... Kb5 {[%clk 0:02:02.5]} 32. f5
{[%clk 0:02:15.9]} 32... c3 {[%clk 0:02:01]} 33. Rfc1 {[%clk 0:02:07.4]} 33...
Rc8 {[%clk 0:02:00.2]} 34. Ke3 {[%clk 0:02:06.2]} 34... Rc4 {[%clk 0:01:57.1]}
35. Rc2 {[%clk 0:02:02.8]} 35... Rxb4 {[%clk 0:01:55.9]} 36. Rac1 {[%clk
0:01:54.4]} 36... Rc6 {[%clk 0:01:52.1]} 37. e6 {[%clk 0:01:50.4]} 37... fxe6
{[%clk 0:01:51.7]} 38. f6 {[%clk 0:01:50.5]} 38... e5 {[%clk 0:01:51.2]} 39. g5
{[%clk 0:00:48.5]} 39... Rxd4 {[%clk 0:01:42.3]} 40. Rf2 {[%clk 0:00:44.9]}
40... Re4+ {[%clk 0:01:32.8]} 41. Kd3 {[%clk 0:00:38.7]} 41... Nc5+ {[%clk
0:01:31.5]} 42. Kc2 {[%clk 0:00:33.3]} 42... Nd7 {[%clk 0:01:29.6]} 43. f7
{[%clk 0:00:25.7]} 43... Nf8 {[%clk 0:01:21]} 44. Rb1+ {[%clk 0:00:25.5]} 44...
Rb4 {[%clk 0:01:18.5]} 45. Rxb4+ {[%clk 0:00:20.4]} 45... Kxb4 {[%clk
0:01:18.5]} 46. Rf1 {[%clk 0:00:18.9]} 46... d4 {[%clk 0:01:14.3]} 47. Rb1+
{[%clk 0:00:18.3]} 47... Kc4 {[%clk 0:01:14.3]} 48. Rb8 {[%clk 0:00:17.1]} 48...
d3+ {[%clk 0:01:14.4]} 49. Kc1 {[%clk 0:00:17.2]} 49... d2+ {[%clk 0:01:12]} 50.
Kc2 {[%clk 0:00:17.5]} 50... Rd6 {[%clk 0:01:11.2]} 51. Rc8+ {[%clk 0:00:17.9]}
51... Kb5 {[%clk 0:01:09.9]} 52. Rxf8 {[%clk 0:00:15.7]} 52... d1=Q+ {[%clk
0:01:09.6]} 53. Kxc3 {[%clk 0:00:16.1]} 53... Rd3+ {[%clk 0:01:08.9]} 54. Kb2
{[%clk 0:00:16.1]} 54... Rb3+ {[%clk 0:01:08.3]} 55. Ka2 {[%clk 0:00:15.9]}
55... Qb1# {[%clk 0:01:08.8]} 0-1

[Event "*** SCC Grand Prix: Titled Tuesday Blitz"]
[Site "Chess.com"]
[Date "2020.08.25"]
[Round "9"]
[White "MF1966Idrisov"]
[Black "ruslansezdbekov"]
[Result "0-1"]
[WhiteElo "2360"]
[BlackElo "2534"]
[TimeControl "180+1"]
[EndTime "11:47:13 PDT"]
[Termination "ruslansezdbekov won on time"]

1. Nf3 {[%clk 0:03:00.9]} 1... Nf6 {[%clk 0:02:59.1]} 2. b3 {[%clk 0:03:01.1]}
2... g6 {[%clk 0:02:57.7]} 3. Bb2 {[%clk 0:03:01.3]} 3... Bg7 {[%clk 0:02:58.6]}
4. c4 {[%clk 0:03:01.6]} 4... O-O {[%clk 0:02:57.7]} 5. g3 {[%clk 0:03:01.7]}
5... c6 {[%clk 0:02:56.5]} 6. Bg2 {[%clk 0:03:01]} 6... d5 {[%clk 0:02:54.4]} 7.
O-O {[%clk 0:03:00.6]} 7... Bf5 {[%clk 0:02:40.1]} 8. d3 {[%clk 0:02:59.8]} 8...
a5 {[%clk 0:02:37.9]} 9. a3 {[%clk 0:02:59.3]} 9... Nbd7 {[%clk 0:02:36]} 10.
Re1 {[%clk 0:02:57.8]} 10... Nc5 {[%clk 0:02:34.3]} 11. Nbd2 {[%clk 0:02:56.2]}
11... h6 {[%clk 0:02:04.6]} 12. Qc2 {[%clk 0:02:55]} 12... Rc8 {[%clk
0:01:55.9]} 13. Bc3 {[%clk 0:02:47]} 13... b5 {[%clk 0:01:48.8]} 14. cxb5 {[%clk
0:02:26.8]} 14... cxb5 {[%clk 0:01:47.2]} 15. Qb2 {[%clk 0:02:26.6]} 15... Bxd3
{[%clk 0:01:40.9]} 16. Nd4 {[%clk 0:02:02.2]} 16... Nfe4 {[%clk 0:01:03.3]} 17.
Nxe4 {[%clk 0:01:55.3]} 17... Nxe4 {[%clk 0:00:42.2]} 18. Bxe4 {[%clk
0:01:29.1]} 18... Bxe4 {[%clk 0:00:31.8]} 19. Nxb5 {[%clk 0:01:28.5]} 19... Bxc3
{[%clk 0:00:17.2]} 20. Nxc3 {[%clk 0:01:27.3]} 20... Bf5 {[%clk 0:00:17.3]} 21.
Rad1 {[%clk 0:01:22.9]} 21... d4 {[%clk 0:00:16.9]} 22. Nb5 {[%clk 0:01:17.8]}
22... e5 {[%clk 0:00:16.6]} 23. e3 {[%clk 0:01:17.4]} 23... Qb6 {[%clk 0:00:16]}
24. a4 {[%clk 0:01:16.9]} 24... Rc2 {[%clk 0:00:15.2]} 25. Qa3 {[%clk
0:01:10.3]} 25... Qb7 {[%clk 0:00:14.6]} 26. Nd6 {[%clk 0:01:02.3]} 26... Qf3
{[%clk 0:00:13.3]} 27. Nxf5 {[%clk 0:00:14.8]} 27... Qxf2+ {[%clk 0:00:10.9]}
0-1